[Event "Late-Titled-Tuesday-Blitz-February-13-2024"]
[Site "Chess.com"]
[Date "2024.02.13"]
[Round "4"]
[White "azikom"]
[Black "claudyna16"]
[Result "1-0"]
[WhiteElo "2707"]
[BlackElo "2425"]
[TimeControl "180+1"]
[EndTime "14:38:16 PST"]
[Termination "azikom won by resignation"]

1. c4 {[%clk 0:02:53]} 1... Nf6 {[%clk 0:02:59.2]} 2. Nc3 {[%clk 0:02:52.8]}
2... g6 {[%clk 0:02:59.1]} 3. e4 {[%clk 0:02:52.4]} 3... d6 {[%clk 0:02:58.9]}
4. d4 {[%clk 0:02:52.8]} 4... Bg7 {[%clk 0:02:59.2]} 5. Bg5 {[%clk 0:02:53.4]}
5... O-O {[%clk 0:02:59.3]} 6. Qd2 {[%clk 0:02:53.1]} 6... c5 {[%clk 0:02:55.7]}
7. d5 {[%clk 0:02:52.6]} 7... a6 {[%clk 0:02:35.6]} 8. f3 {[%clk 0:02:52.2]}
8... b5 {[%clk 0:02:32.1]} 9. cxb5 {[%clk 0:02:51.3]} 9... axb5 {[%clk 0:02:33]}
10. Bxb5 {[%clk 0:02:51.3]} 10... Qa5 {[%clk 0:02:32.3]} 11. Nge2 {[%clk
0:02:45.4]} 11... Ba6 {[%clk 0:02:30]} 12. Bxa6 {[%clk 0:02:39.1]} 12... Nxa6
{[%clk 0:02:30.9]} 13. O-O {[%clk 0:02:39.1]} 13... Rfb8 {[%clk 0:02:24.4]} 14.
Rab1 {[%clk 0:02:28.7]} 14... Qc7 {[%clk 0:02:03.4]} 15. h3 {[%clk 0:02:25.6]}
15... Re8 {[%clk 0:01:35.6]} 16. Bh6 {[%clk 0:02:12.4]} 16... Bh8 {[%clk
0:01:35.1]} 17. f4 {[%clk 0:02:02.9]} 17... Nd7 {[%clk 0:01:32.9]} 18. Kh1
{[%clk 0:02:02.8]} 18... Nb4 {[%clk 0:01:16.2]} 19. a3 {[%clk 0:01:54.1]} 19...
Na6 {[%clk 0:01:16.4]} 20. Rfc1 {[%clk 0:01:11.9]} 20... Rab8 {[%clk 0:01:15.8]}
21. Qd3 {[%clk 0:00:38.9]} 21... c4 {[%clk 0:01:09.6]} 22. Qc2 {[%clk
0:00:36.2]} 22... Nac5 {[%clk 0:01:07.9]} 23. Rd1 {[%clk 0:00:32.8]} 23... Nb3
{[%clk 0:01:06.5]} 24. Na2 {[%clk 0:00:24.9]} 24... e6 {[%clk 0:00:49.8]} 25.
Nb4 {[%clk 0:00:23]} 25... Nb6 {[%clk 0:00:26.5]} 26. dxe6 {[%clk 0:00:20.5]}
26... Qb7 {[%clk 0:00:19.7]} 27. exf7+ {[%clk 0:00:19.7]} 27... Qxf7 {[%clk
0:00:17.3]} 28. Ng3 {[%clk 0:00:19.5]} 28... Rbd8 {[%clk 0:00:15.5]} 29. Bg5
{[%clk 0:00:18.8]} 29... Nd4 {[%clk 0:00:14.2]} 30. Qf2 {[%clk 0:00:17.5]} 30...
Ne6 {[%clk 0:00:09.9]} 31. Bxd8 {[%clk 0:00:16.7]} 31... Rxd8 {[%clk 0:00:10.8]}
32. Qxb6 {[%clk 0:00:16.7]} 1-0

[Event "Late-Titled-Tuesday-Blitz-February-13-2024"]
[Site "Chess.com"]
[Date "2024.02.13"]
[Round "4"]
[White "VitorBronson"]
[Black "N_I_Chess"]
[Result "1-0"]
[WhiteElo "2509"]
[BlackElo "2281"]
[TimeControl "180+1"]
[EndTime "14:38:18 PST"]
[Termination "VitorBronson won on time"]

1. d4 {[%clk 0:03:00.9]} 1... Nf6 {[%clk 0:02:58.9]} 2. c4 {[%clk 0:03:00.9]}
2... e6 {[%clk 0:02:59.2]} 3. Nf3 {[%clk 0:03:00.8]} 3... Bb4+ {[%clk
0:02:58.9]} 4. Bd2 {[%clk 0:03:00.4]} 4... Qe7 {[%clk 0:02:59.4]} 5. Nc3 {[%clk
0:02:58.5]} 5... d5 {[%clk 0:02:52.5]} 6. e3 {[%clk 0:02:38.7]} 6... O-O {[%clk
0:02:46.7]} 7. Bd3 {[%clk 0:02:37.1]} 7... Nbd7 {[%clk 0:02:38.4]} 8. O-O {[%clk
0:02:37]} 8... dxc4 {[%clk 0:02:36.1]} 9. Bxc4 {[%clk 0:02:37]} 9... e5 {[%clk
0:02:32.6]} 10. dxe5 {[%clk 0:02:35.4]} 10... Nxe5 {[%clk 0:02:28.7]} 11. Nxe5
{[%clk 0:02:31.1]} 11... Qxe5 {[%clk 0:02:29.6]} 12. a3 {[%clk 0:02:30.8]} 12...
Bg4 {[%clk 0:02:10]} 13. Qc2 {[%clk 0:02:11.9]} 13... Bd6 {[%clk 0:02:04]} 14.
f4 {[%clk 0:02:11.7]} 14... Qh5 {[%clk 0:01:59.2]} 15. Rae1 {[%clk 0:02:07.8]}
15... Rfe8 {[%clk 0:01:57.1]} 16. h3 {[%clk 0:01:57.4]} 16... Bd7 {[%clk
0:01:30.9]} 17. Be2 {[%clk 0:01:45.8]} 17... Qh4 {[%clk 0:01:02.3]} 18. Bf3
{[%clk 0:01:43.2]} 18... Bc5 {[%clk 0:00:49.3]} 19. Nd1 {[%clk 0:01:34.8]} 19...
Bb6 {[%clk 0:00:46.3]} 20. Nf2 {[%clk 0:01:28.9]} 20... Bb5 {[%clk 0:00:40.2]}
21. Be2 {[%clk 0:01:26.6]} 21... Bxe2 {[%clk 0:00:36.1]} 22. Rxe2 {[%clk
0:01:26.3]} 22... Rad8 {[%clk 0:00:32.9]} 23. Bc1 {[%clk 0:01:21.8]} 23... Qg3
{[%clk 0:00:21.6]} 24. Nh1 {[%clk 0:00:56]} 24... Qg6 {[%clk 0:00:17.3]} 25.
Qxg6 {[%clk 0:00:54.6]} 25... hxg6 {[%clk 0:00:18.2]} 26. Nf2 {[%clk 0:00:47.8]}
26... Ne4 {[%clk 0:00:16.1]} 27. Nxe4 {[%clk 0:00:32.6]} 27... Rxe4 {[%clk
0:00:15.7]} 28. Kh2 {[%clk 0:00:33.1]} 28... Rde8 {[%clk 0:00:14.9]} 29. Rfe1
{[%clk 0:00:33.4]} 29... f6 {[%clk 0:00:13.5]} 30. Kg3 {[%clk 0:00:33.8]} 30...
Kf7 {[%clk 0:00:13.5]} 31. Kf3 {[%clk 0:00:34.4]} 31... c6 {[%clk 0:00:13.8]}
32. Rd1 {[%clk 0:00:34.9]} 32... R4e6 {[%clk 0:00:09.5]} 33. Rd7+ {[%clk
0:00:34.5]} 33... R6e7 {[%clk 0:00:08.3]} 34. Rxe7+ {[%clk 0:00:34.9]} 34...
Rxe7 {[%clk 0:00:08]} 35. e4 {[%clk 0:00:35.7]} 35... Rd7 {[%clk 0:00:07.7]} 36.
Be3 {[%clk 0:00:35.5]} 1-0

[Event "Late-Titled-Tuesday-Blitz-February-13-2024"]
[Site "Chess.com"]
[Date "2024.02.13"]
[Round "4"]
[White "FrenchMonster2002"]
[Black "Goryachkina"]
[Result "0-1"]
[WhiteElo "2466"]
[BlackElo "2694"]
[TimeControl "180+1"]
[EndTime "14:38:22 PST"]
[Termination "Goryachkina won on time"]

1. e4 {[%clk 0:03:00.9]} 1... c5 {[%clk 0:02:59.9]} 2. d4 {[%clk 0:02:59.8]}
2... cxd4 {[%clk 0:02:59.7]} 3. Qxd4 {[%clk 0:03:00.7]} 3... Nc6 {[%clk
0:02:58.6]} 4. Qd3 {[%clk 0:03:01.1]} 4... e6 {[%clk 0:02:55.6]} 5. Nc3 {[%clk
0:03:01.2]} 5... a6 {[%clk 0:02:55.7]} 6. Bf4 {[%clk 0:03:01.4]} 6... b5 {[%clk
0:02:27.7]} 7. O-O-O {[%clk 0:02:55.7]} 7... Nf6 {[%clk 0:02:26.7]} 8. e5 {[%clk
0:02:53.1]} 8... Qc7 {[%clk 0:02:25.1]} 9. Nf3 {[%clk 0:02:12.2]} 9... b4 {[%clk
0:02:12.8]} 10. Ne4 {[%clk 0:01:56.5]} 10... Nxe4 {[%clk 0:02:11.6]} 11. Qxe4
{[%clk 0:01:57.4]} 11... Bb7 {[%clk 0:02:11.3]} 12. Bd3 {[%clk 0:01:44.4]} 12...
a5 {[%clk 0:01:54.1]} 13. Kb1 {[%clk 0:01:25.3]} 13... a4 {[%clk 0:01:51.7]} 14.
h4 {[%clk 0:01:00.2]} 14... b3 {[%clk 0:01:36.9]} 15. a3 {[%clk 0:00:49.7]}
15... Nb4 {[%clk 0:01:22.7]} 16. axb4 {[%clk 0:00:30.5]} 16... Bxe4 {[%clk
0:01:20.4]} 17. Bxe4 {[%clk 0:00:31.4]} 17... bxc2+ {[%clk 0:01:11.1]} 18. Bxc2
{[%clk 0:00:32.3]} 18... Bxb4 {[%clk 0:01:09.8]} 19. Rd4 {[%clk 0:00:29.5]}
19... Bc5 {[%clk 0:01:04.4]} 20. Rc4 {[%clk 0:00:28.7]} 20... a3 {[%clk
0:00:56.3]} 21. b4 {[%clk 0:00:20.1]} 21... Qb6 {[%clk 0:00:54.9]} 22. Ka2
{[%clk 0:00:15.4]} 22... Bxf2 {[%clk 0:00:50.8]} 23. Ng5 {[%clk 0:00:10.5]}
23... Be3 {[%clk 0:00:37.1]} 24. Rf1 {[%clk 0:00:02.6]} 24... Bxf4 {[%clk
0:00:17.8]} 25. Rfxf4 {[%clk 0:00:03]} 25... Qe3 {[%clk 0:00:09.4]} 26. Nxf7
{[%clk 0:00:02.6]} 26... Qc1 {[%clk 0:00:06]} 27. Nd6+ {[%clk 0:00:03]} 27...
Kd8 {[%clk 0:00:05.7]} 28. Nb7+ {[%clk 0:00:01.6]} 28... Ke7 {[%clk 0:00:05.8]}
0-1

[Event "Late-Titled-Tuesday-Blitz-February-13-2024"]
[Site "Chess.com"]
[Date "2024.02.13"]
[Round "4"]
[White "mitrabhaa"]
[Black "Practical-Play"]
[Result "1-0"]
[WhiteElo "2892"]
[BlackElo "2583"]
[TimeControl "180+1"]
[EndTime "14:38:23 PST"]
[Termination "mitrabhaa won on time"]

1. Nf3 {[%clk 0:03:00.9]} 1... c5 {[%clk 0:02:55.8]} 2. c3 {[%clk 0:02:55.9]}
2... Nf6 {[%clk 0:02:52]} 3. d4 {[%clk 0:02:56.8]} 3... d5 {[%clk 0:02:52.5]} 4.
dxc5 {[%clk 0:02:49.7]} 4... e6 {[%clk 0:02:52.2]} 5. b4 {[%clk 0:02:36.1]} 5...
a5 {[%clk 0:02:51.2]} 6. e3 {[%clk 0:02:33.5]} 6... axb4 {[%clk 0:02:40.9]} 7.
cxb4 {[%clk 0:02:34.4]} 7... b6 {[%clk 0:02:41.8]} 8. Bb5+ {[%clk 0:02:27.2]}
8... Bd7 {[%clk 0:02:38.8]} 9. Bxd7+ {[%clk 0:02:08.5]} 9... Nfxd7 {[%clk
0:02:39.7]} 10. a4 {[%clk 0:02:09.4]} 10... Na6 {[%clk 0:02:17.3]} 11. c6 {[%clk
0:01:57.3]} 11... Bxb4+ {[%clk 0:02:14.2]} 12. Bd2 {[%clk 0:01:57.3]} 12... Ndc5
{[%clk 0:02:10.4]} 13. O-O {[%clk 0:01:55.2]} 13... O-O {[%clk 0:02:08.3]} 14.
Nd4 {[%clk 0:01:50.4]} 14... Qf6 {[%clk 0:01:52.1]} 15. Nc3 {[%clk 0:01:46.7]}
15... Rfd8 {[%clk 0:01:42]} 16. f4 {[%clk 0:01:30.6]} 16... e5 {[%clk
0:01:30.7]} 17. fxe5 {[%clk 0:01:18.5]} 17... Qxe5 {[%clk 0:01:31.6]} 18. Ncb5
{[%clk 0:01:18.4]} 18... Bxd2 {[%clk 0:01:26.6]} 19. Qxd2 {[%clk 0:01:19.3]}
19... Rac8 {[%clk 0:01:18.7]} 20. Rf5 {[%clk 0:01:17]} 20... Qe7 {[%clk
0:01:14.2]} 21. Raf1 {[%clk 0:01:07.4]} 21... f6 {[%clk 0:01:13.4]} 22. Kh1
{[%clk 0:01:07.2]} 22... Nxa4 {[%clk 0:01:04.3]} 23. Qa2 {[%clk 0:01:05.6]}
23... N4c5 {[%clk 0:00:47.1]} 24. Rxd5 {[%clk 0:01:03.4]} 24... Qf7 {[%clk
0:00:37.3]} 25. Rxd8+ {[%clk 0:01:00.2]} 25... Rxd8 {[%clk 0:00:38.2]} 26. Qf2
{[%clk 0:00:57.1]} 26... Nc7 {[%clk 0:00:27.8]} 27. h3 {[%clk 0:00:47.8]} 27...
h6 {[%clk 0:00:21.3]} 28. Qf4 {[%clk 0:00:46.1]} 28... N7e6 {[%clk 0:00:15.4]}
29. Qf5 {[%clk 0:00:43.8]} 29... Nc7 {[%clk 0:00:14.3]} 30. Ra1 {[%clk
0:00:38.1]} 30... g6 {[%clk 0:00:06.3]} 31. Qf4 {[%clk 0:00:37.3]} 31... Nd5
{[%clk 0:00:05.5]} 32. Qxh6 {[%clk 0:00:36.9]} 32... Re8 {[%clk 0:00:05.1]} 33.
Ra7 {[%clk 0:00:35.9]} 33... Re7 {[%clk 0:00:04.5]} 34. Rxe7 {[%clk 0:00:31.3]}
34... Nxe7 {[%clk 0:00:05.2]} 35. c7 {[%clk 0:00:30.9]} 35... Qe8 {[%clk
0:00:05.3]} 36. Qf4 {[%clk 0:00:29.5]} 36... Nd5 {[%clk 0:00:04.9]} 37. Qd6
{[%clk 0:00:28.5]} 37... Ne7 {[%clk 0:00:02.2]} 38. Qd8 {[%clk 0:00:27.1]} 38...
Kf7 {[%clk 0:00:02]} 39. Nd6+ {[%clk 0:00:27.7]} 1-0

[Event "Late-Titled-Tuesday-Blitz-February-13-2024"]
[Site "Chess.com"]
[Date "2024.02.13"]
[Round "4"]
[White "snowlord"]
[Black "JiiHart"]
[Result "1-0"]
[WhiteElo "2851"]
[BlackElo "2171"]
[TimeControl "180+1"]
[EndTime "14:38:24 PST"]
[Termination "snowlord won on time"]

1. d4 {[%clk 0:03:00.9]} 1... d5 {[%clk 0:02:59]} 2. Bf4 {[%clk 0:02:59.9]} 2...
Bf5 {[%clk 0:02:58]} 3. e3 {[%clk 0:02:59.5]} 3... e6 {[%clk 0:02:58]} 4. c4
{[%clk 0:02:59.9]} 4... c6 {[%clk 0:02:57]} 5. Nc3 {[%clk 0:02:58.9]} 5... Bd6
{[%clk 0:02:56.2]} 6. Qb3 {[%clk 0:02:57.7]} 6... b6 {[%clk 0:02:42.6]} 7. Bxd6
{[%clk 0:02:52.8]} 7... Qxd6 {[%clk 0:02:41.5]} 8. cxd5 {[%clk 0:02:52.7]} 8...
exd5 {[%clk 0:02:39.6]} 9. Nge2 {[%clk 0:02:51.3]} 9... Nd7 {[%clk 0:02:31.9]}
10. Qa3 {[%clk 0:02:48.9]} 10... Qxa3 {[%clk 0:02:30.3]} 11. bxa3 {[%clk
0:02:49.8]} 11... Ne7 {[%clk 0:02:26.5]} 12. f3 {[%clk 0:02:47.3]} 12... O-O
{[%clk 0:02:19.1]} 13. Kd2 {[%clk 0:02:47.1]} 13... Rfd8 {[%clk 0:02:17.3]} 14.
g4 {[%clk 0:02:38.9]} 14... Be6 {[%clk 0:02:14.7]} 15. Nf4 {[%clk 0:02:38.4]}
15... c5 {[%clk 0:02:00.8]} 16. Ba6 {[%clk 0:02:34.6]} 16... Rab8 {[%clk
0:01:45.9]} 17. Bb5 {[%clk 0:02:21.2]} 17... Nf6 {[%clk 0:01:21]} 18. h4 {[%clk
0:02:17.5]} 18... Bd7 {[%clk 0:01:08.7]} 19. Be2 {[%clk 0:02:10.7]} 19... cxd4
{[%clk 0:01:01.2]} 20. exd4 {[%clk 0:02:10.7]} 20... Nc6 {[%clk 0:00:56.8]} 21.
Kd3 {[%clk 0:02:09.1]} 21... Be6 {[%clk 0:00:55.4]} 22. g5 {[%clk 0:02:07.8]}
22... Ne8 {[%clk 0:00:54.3]} 23. Rhd1 {[%clk 0:02:02.2]} 23... Bf5+ {[%clk
0:00:51.4]} 24. Ke3 {[%clk 0:02:02.4]} 24... Nc7 {[%clk 0:00:50.7]} 25. Rac1
{[%clk 0:02:00.8]} 25... Re8+ {[%clk 0:00:50.3]} 26. Kf2 {[%clk 0:02:00.7]}
26... Rbc8 {[%clk 0:00:48.5]} 27. Ncxd5 {[%clk 0:01:53.7]} 27... Nxd5 {[%clk
0:00:48]} 28. Nxd5 {[%clk 0:01:54.6]} 28... Red8 {[%clk 0:00:32.4]} 29. Rxc6
{[%clk 0:01:49]} 29... Rxd5 {[%clk 0:00:32.5]} 30. Rxc8+ {[%clk 0:01:49.3]}
30... Bxc8 {[%clk 0:00:32.7]} 31. Rc1 {[%clk 0:01:50]} 31... Rd8 {[%clk
0:00:29.1]} 32. Rc7 {[%clk 0:01:02.6]} 32... a6 {[%clk 0:00:18.2]} 33. d5 {[%clk
0:00:53.7]} 33... h6 {[%clk 0:00:15.6]} 34. Bc4 {[%clk 0:00:50.4]} 34... hxg5
{[%clk 0:00:13.3]} 35. hxg5 {[%clk 0:00:51.3]} 35... Kf8 {[%clk 0:00:11.4]} 36.
Ke3 {[%clk 0:00:44.8]} 36... Ke8 {[%clk 0:00:09.6]} 37. Kf4 {[%clk 0:00:42.5]}
37... Bd7 {[%clk 0:00:06.1]} 38. Ke5 {[%clk 0:00:37.7]} 38... b5 {[%clk
0:00:04.2]} 39. Bb3 {[%clk 0:00:36.9]} 39... Rc8 {[%clk 0:00:03.9]} 40. Kd6
{[%clk 0:00:35.3]} 40... Rxc7 {[%clk 0:00:03.9]} 41. Kxc7 {[%clk 0:00:36.2]}
41... Bf5 {[%clk 0:00:03]} 42. d6 {[%clk 0:00:37.1]} 42... Bd7 {[%clk 0:00:02]}
43. Bxf7+ {[%clk 0:00:36.6]} 43... Kxf7 {[%clk 0:00:01.5]} 44. Kxd7 {[%clk
0:00:37.5]} 1-0

[Event "Late-Titled-Tuesday-Blitz-February-13-2024"]
[Site "Chess.com"]
[Date "2024.02.13"]
[Round "4"]
[White "GianmarcoVaR"]
[Black "Dinamo3"]
[Result "1-0"]
[WhiteElo "2723"]
[BlackElo "2532"]
[TimeControl "180+1"]
[EndTime "14:38:31 PST"]
[Termination "GianmarcoVaR won on time"]

1. e4 {[%clk 0:03:00.9]} 1... c5 {[%clk 0:02:58.8]} 2. Nf3 {[%clk 0:03:00.3]}
2... Nc6 {[%clk 0:02:58.7]} 3. d4 {[%clk 0:02:59.2]} 3... cxd4 {[%clk
0:02:59.6]} 4. Nxd4 {[%clk 0:02:59.8]} 4... g6 {[%clk 0:03:00.1]} 5. Nc3 {[%clk
0:02:58.8]} 5... Bg7 {[%clk 0:03:00.4]} 6. Be3 {[%clk 0:02:59]} 6... Nf6 {[%clk
0:03:01]} 7. Bc4 {[%clk 0:02:59.2]} 7... O-O {[%clk 0:03:01.3]} 8. Bb3 {[%clk
0:02:54.3]} 8... Re8 {[%clk 0:03:01.2]} 9. Qd2 {[%clk 0:02:35.6]} 9... Ng4
{[%clk 0:02:51.8]} 10. Nxc6 {[%clk 0:02:34.3]} 10... bxc6 {[%clk 0:02:50.9]} 11.
Bf4 {[%clk 0:02:30.2]} 11... Qb6 {[%clk 0:02:37.1]} 12. h3 {[%clk 0:02:09.2]}
12... Nf6 {[%clk 0:02:07]} 13. e5 {[%clk 0:02:08]} 13... Nd5 {[%clk 0:01:26.7]}
14. Nxd5 {[%clk 0:02:06.5]} 14... cxd5 {[%clk 0:01:27.6]} 15. Qxd5 {[%clk
0:02:07]} 15... Bb7 {[%clk 0:01:28.1]} 16. Qxf7+ {[%clk 0:02:04]} 16... Kh8
{[%clk 0:01:28.6]} 17. O-O-O {[%clk 0:01:04.7]} 17... Bc6 {[%clk 0:00:22.3]} 18.
Be3 {[%clk 0:00:40.7]} 18... Qa5 {[%clk 0:00:22.4]} 19. f4 {[%clk 0:00:39.7]}
19... Bxg2 {[%clk 0:00:15.2]} 20. Rh2 {[%clk 0:00:39.1]} 20... Bc6 {[%clk
0:00:14.7]} 21. h4 {[%clk 0:00:37.2]} 21... Qb4 {[%clk 0:00:05.4]} 22. h5 {[%clk
0:00:28.5]} 22... Rf8 {[%clk 0:00:05.2]} 23. Qc4 {[%clk 0:00:11.8]} 23... Qxc4
{[%clk 0:00:05.7]} 24. Bxc4 {[%clk 0:00:12.7]} 24... gxh5 {[%clk 0:00:06.3]} 25.
Be2 {[%clk 0:00:11.6]} 25... d6 {[%clk 0:00:05.2]} 26. Rxh5 {[%clk 0:00:11.3]}
26... dxe5 {[%clk 0:00:04.8]} 27. fxe5 {[%clk 0:00:11.9]} 27... Rad8 {[%clk
0:00:03.7]} 28. Bd3 {[%clk 0:00:12.2]} 28... h6 {[%clk 0:00:01.3]} 29. Bxh6
{[%clk 0:00:06.8]} 29... Kg8 {[%clk 0:00:01.8]} 30. Rg1 {[%clk 0:00:06.3]} 30...
Rf7 {[%clk 0:00:02.4]} 31. Rhg5 {[%clk 0:00:06.5]} 31... Kf8 {[%clk 0:00:02.8]}
32. Bxg7+ {[%clk 0:00:05.9]} 32... Ke8 {[%clk 0:00:03.4]} 33. e6 {[%clk
0:00:05.4]} 33... Rf3 {[%clk 0:00:01.8]} 34. Bg6+ {[%clk 0:00:05]} 1-0

[Event "Late-Titled-Tuesday-Blitz-February-13-2024"]
[Site "Chess.com"]
[Date "2024.02.13"]
[Round "4"]
[White "Zq1"]
[Black "johnmez"]
[Result "0-1"]
[WhiteElo "2493"]
[BlackElo "2299"]
[TimeControl "180+1"]
[EndTime "14:38:31 PST"]
[Termination "johnmez won by checkmate"]

1. d4 {[%clk 0:03:00.9]} 1... Nf6 {[%clk 0:02:57.9]} 2. c4 {[%clk 0:03:00.6]}
2... c5 {[%clk 0:02:58.5]} 3. Nf3 {[%clk 0:02:59.7]} 3... cxd4 {[%clk
0:02:57.8]} 4. Nxd4 {[%clk 0:02:59.3]} 4... Nc6 {[%clk 0:02:57.7]} 5. Nc3 {[%clk
0:02:57.2]} 5... g6 {[%clk 0:02:56.9]} 6. e4 {[%clk 0:02:53.2]} 6... d6 {[%clk
0:02:55.6]} 7. Be2 {[%clk 0:02:51.1]} 7... Bg7 {[%clk 0:02:55.3]} 8. Be3 {[%clk
0:02:51.1]} 8... O-O {[%clk 0:02:54.5]} 9. O-O {[%clk 0:02:50.9]} 9... a6 {[%clk
0:02:47.1]} 10. Nb3 {[%clk 0:02:45.8]} 10... Qc7 {[%clk 0:02:44.5]} 11. Rc1
{[%clk 0:02:44.7]} 11... Be6 {[%clk 0:02:43.6]} 12. Nd5 {[%clk 0:02:43.2]} 12...
Qd8 {[%clk 0:02:32.7]} 13. f3 {[%clk 0:02:37.1]} 13... Nd7 {[%clk 0:02:12.6]}
14. Qd2 {[%clk 0:02:33.8]} 14... Nde5 {[%clk 0:02:01.6]} 15. f4 {[%clk
0:02:21.8]} 15... Ng4 {[%clk 0:01:58.6]} 16. Bxg4 {[%clk 0:02:19.4]} 16... Bxg4
{[%clk 0:01:58.2]} 17. f5 {[%clk 0:02:19.4]} 17... e6 {[%clk 0:01:51]} 18. f6
{[%clk 0:01:49.8]} 18... Bh8 {[%clk 0:01:47.8]} 19. Nb6 {[%clk 0:01:43.2]} 19...
Rb8 {[%clk 0:01:15.6]} 20. h3 {[%clk 0:01:40.6]} 20... Bh5 {[%clk 0:01:12.5]}
21. c5 {[%clk 0:01:30.6]} 21... Bxf6 {[%clk 0:00:56.2]} 22. Qxd6 {[%clk
0:01:23]} 22... Bxb2 {[%clk 0:00:37.4]} 23. Rc2 {[%clk 0:01:16]} 23... Be5
{[%clk 0:00:37.8]} 24. Qxd8 {[%clk 0:01:12.1]} 24... Rbxd8 {[%clk 0:00:38.7]}
25. g4 {[%clk 0:01:10.6]} 25... Rd3 {[%clk 0:00:38.6]} 26. Re2 {[%clk
0:01:04.9]} 26... f5 {[%clk 0:00:27.2]} 27. exf5 {[%clk 0:00:57.9]} 27... exf5
{[%clk 0:00:24.3]} 28. gxh5 {[%clk 0:00:56.8]} 28... f4 {[%clk 0:00:24.6]} 29.
Bf2 {[%clk 0:00:48]} 29... Rxh3 {[%clk 0:00:24.1]} 30. hxg6 {[%clk 0:00:42.2]}
30... f3 {[%clk 0:00:21.3]} 31. Rxe5 {[%clk 0:00:37.3]} 31... Nxe5 {[%clk
0:00:20.4]} 32. Bd4 {[%clk 0:00:26.9]} 32... Nd3 {[%clk 0:00:12.7]} 33. Nd7
{[%clk 0:00:19.9]} 33... Rf5 {[%clk 0:00:12.1]} 34. Nf6+ {[%clk 0:00:18.5]}
34... Kf8 {[%clk 0:00:11.2]} 35. Nxh7+ {[%clk 0:00:17.6]} 35... Ke8 {[%clk
0:00:11.5]} 36. g7 {[%clk 0:00:11.5]} 36... Rg3+ {[%clk 0:00:11.6]} 37. Kh2
{[%clk 0:00:10.1]} 37... Rg2+ {[%clk 0:00:10.6]} 38. Kh3 {[%clk 0:00:10.1]}
38... Rh5# {[%clk 0:00:10.7]} 0-1

[Event "Late-Titled-Tuesday-Blitz-February-13-2024"]
[Site "Chess.com"]
[Date "2024.02.13"]
[Round "4"]
[White "Cosi43"]
[Black "Njal28"]
[Result "0-1"]
[WhiteElo "2614"]
[BlackElo "2993"]
[TimeControl "180+1"]
[EndTime "14:38:32 PST"]
[Termination "Njal28 won on time"]

1. d4 {[%clk 0:03:00.9]} 1... Nf6 {[%clk 0:03:00.2]} 2. Nf3 {[%clk 0:03:01.3]}
2... d5 {[%clk 0:02:58.5]} 3. e3 {[%clk 0:03:00.6]} 3... Bf5 {[%clk 0:02:55.5]}
4. c4 {[%clk 0:02:56]} 4... c6 {[%clk 0:02:55.5]} 5. Nc3 {[%clk 0:02:54.1]} 5...
e6 {[%clk 0:02:55.2]} 6. Qb3 {[%clk 0:02:47.5]} 6... Qc7 {[%clk 0:02:54.4]} 7.
Bd2 {[%clk 0:02:43.9]} 7... Nbd7 {[%clk 0:02:53.4]} 8. Rc1 {[%clk 0:02:41.5]}
8... Qb8 {[%clk 0:02:50.6]} 9. Nh4 {[%clk 0:02:35.3]} 9... Bg4 {[%clk
0:02:49.2]} 10. h3 {[%clk 0:02:34.8]} 10... Bh5 {[%clk 0:02:49.6]} 11. g4 {[%clk
0:02:34.9]} 11... Bg6 {[%clk 0:02:49.7]} 12. Nxg6 {[%clk 0:02:31.5]} 12... hxg6
{[%clk 0:02:50.6]} 13. Bg2 {[%clk 0:02:31.8]} 13... Nb6 {[%clk 0:02:51.2]} 14.
cxd5 {[%clk 0:02:30.5]} 14... exd5 {[%clk 0:02:52.1]} 15. Ne2 {[%clk 0:02:13.7]}
15... Bd6 {[%clk 0:02:47.1]} 16. Qc2 {[%clk 0:02:05.5]} 16... Nc4 {[%clk
0:02:45.2]} 17. Bc3 {[%clk 0:02:02.5]} 17... Qc7 {[%clk 0:02:37.1]} 18. b3
{[%clk 0:02:01.5]} 18... Nb6 {[%clk 0:02:35.8]} 19. a4 {[%clk 0:02:00.3]} 19...
a5 {[%clk 0:02:20.8]} 20. Bf3 {[%clk 0:01:21.6]} 20... Nbd7 {[%clk 0:02:11.2]}
21. Bb2 {[%clk 0:01:16.2]} 21... g5 {[%clk 0:02:08]} 22. Nc3 {[%clk 0:00:58.6]}
22... Qb6 {[%clk 0:02:01.2]} 23. Bg2 {[%clk 0:00:43.5]} 23... Nf8 {[%clk
0:01:57.6]} 24. e4 {[%clk 0:00:37.1]} 24... Ne6 {[%clk 0:01:55.9]} 25. e5 {[%clk
0:00:14.1]} 25... Nxd4 {[%clk 0:01:55.2]} 26. Qd1 {[%clk 0:00:10.8]} 26... Bxe5
{[%clk 0:01:54.3]} 27. O-O {[%clk 0:00:10.7]} 27... O-O {[%clk 0:01:13.7]} 28.
Re1 {[%clk 0:00:10.8]} 28... Rfe8 {[%clk 0:01:05.9]} 29. Nxd5 {[%clk 0:00:10.7]}
29... cxd5 {[%clk 0:00:49]} 30. Rxe5 {[%clk 0:00:10.7]} 30... Nxb3 {[%clk
0:00:36]} 31. Rxe8+ {[%clk 0:00:09.5]} 31... Rxe8 {[%clk 0:00:36.9]} 32. Rb1
{[%clk 0:00:06.1]} 32... Qb4 {[%clk 0:00:20.6]} 33. Bxf6 {[%clk 0:00:04.8]}
33... gxf6 {[%clk 0:00:21.3]} 34. Qxb3 {[%clk 0:00:04.4]} 34... Re1+ {[%clk
0:00:21.7]} 35. Rxe1 {[%clk 0:00:01.7]} 35... Qxb3 {[%clk 0:00:21.9]} 36. Re8+
{[%clk 0:00:01.5]} 36... Kg7 {[%clk 0:00:22.4]} 37. Rd8 {[%clk 0:00:02.1]} 37...
Qd1+ {[%clk 0:00:16.8]} 38. Kh2 {[%clk 0:00:02.3]} 38... d4 {[%clk 0:00:17.7]}
39. Rd7 {[%clk 0:00:01.1]} 39... Qd2 {[%clk 0:00:18.1]} 0-1